[Event "CCT Julius Baer-D3 2024"]
[Site "Online"]
[Date "2024.09.27"]
[Round "1.4"]
[White "Esipenko, Andrey"]
[Black "Kamsky, Gata"]
[Result "0-1"]
[ECO "C50"]
[WhiteElo "2677"]
[BlackElo "2609"]
[Annotator "TA"]
[PlyCount "38"]
[EventDate "2024.09.25"]
[EventType "swiss"]
[EventCountry "NET"]
[SourceTitle "playchess.com"]
[Source "ChessBase"]
[SourceQuality "1"]
[TimeControl "600+2"]

{[%evp 10,38,20,27,15,16,22,29,31,16,39,0,47,13,16,5,19,13,18,0,5,0,0,0,7,-26,-27,-54,-48,-168,-155]} 1. e4 {[%emt 0:00:04]} e5 {[%emt 0:00:14]} 2. Nf3 {[%emt 0:00:02]} Nc6 {[%emt 0:00:01]} 3. Bc4 {[%emt 0:00:05]} Bc5 {[%emt 0:00:07]} 4. d3 {[%emt 0:00:05]} Nf6 {[%emt 0:00:02]} 5. Bg5 {[%emt 0:00:02]} h6 {[%emt 0:00:02]} 6. Bh4 {[%emt 0:00:01]} Be7 {[%emt 0:00:04]} 7. Bg3 {[%emt 0:00:02]} d6 {[%emt 0:00:02]} 8. a4 {[%emt 0:00:02]} a5 {[%emt 0:00:03] White has an edge.} 9. O-O {[%emt 0:00:05]} O-O {[%emt 0:00:03]} 10. c3 {[%emt 0:00:13]} Kh8 {[%emt 0:00:11]} (10... Nh5 $11 {is more appropriate.}) 11. Qb3 {[%emt 0:01:23]} Nd7 {[%emt 0:00:56]} 12. d4 {[%emt 0:00:18]} Bf6 {[%emt 0:00:27]} 13. Rd1 {[%emt 0:00:10]} Qe7 {[%emt 0:00:03]} 14. Na3 {[%emt 0:00:55]} Nb6 {[%emt 0:00:09]} 15. dxe5 {[%emt 0:00:59]} Nxe5 {[%emt 0:00:07]} 16. Nxe5 {[%emt 0:00:02]} Bxe5 {[%emt 0:00:05]} 17. Bxe5 {[%emt 0:00:01]} dxe5 {[%emt 0:00:37]} 18. Nb5 {[%emt 0:01:18]} Bg4 {[%emt 0:00:30][%cal Ob6c4] [#] And now ...Nxc4! would win.} 19. Rd2 {[%emt 0:00:18]} (19. Rdb1 $15) 19... Qg5 {[%emt 0:00:03] Weighted Error Value: White=0.26 (precise) /Black=0.09 (flawless) .  Mistake:       	White=1     	Black=1      Inaccurate:     	White=4     	---        OK:         	White=3     	Black=3      Best:        	---       	Black=2} 0-1

[Event "CCT Julius Baer-D3 2024"]
[Site "Online"]
[Date "2024.09.27"]
[Round "1.4"]
[White "Svane, Frederik"]
[Black "Theodorou, Nikolas"]
[Result "1/2-1/2"]
[ECO "B30"]
[WhiteElo "2640"]
[BlackElo "2619"]
[Annotator "TA"]
[PlyCount "43"]
[EventDate "2024.09.25"]
[EventType "swiss"]
[EventCountry "NET"]
[SourceTitle "playchess.com"]
[Source "ChessBase"]
[SourceQuality "1"]
[TimeControl "600+2"]

{[%evp 9,43,0,0,0,40,26,37,48,46,42,47,39,66,29,69,41,37,40,52,31,85,17,205,0,0,0,0,0,0,0,0,0,0,0,0,0]} 1. e4 {[%emt 0:00:02]} c5 {[%emt 0:00:02]} 2. Nf3 {[%emt 0:00:02]} Nc6 {[%emt 0:00:01]} 3. Bb5 {[%emt 0:00:01]} e6 {[%emt 0:00:00]} 4. Bxc6 {[%emt 0:00:01]} bxc6 {[%emt 0:00:01]} 5. d3 {[%emt 0:00:00]} Ne7 {[%emt 0:00:02]} 6. Nbd2 {[%emt 0:00:02]} f6 {[%emt 0:00:35]} 7. Nh4 {[%emt 0:00:02][%cal Oe4e5]} d5 {[%emt 0:00:03]} 8. f4 {[%emt 0:00:12] White is slightly better.} c4 {[%emt 0:00:13]} 9. dxc4 {[%emt 0:00:02]} Ba6 {[%emt 0:00:05]} 10. b3 {[%emt 0:00:47]} Qb6 {[%emt 0:00:44]} 11. Bb2 {[%emt 0:00:53]} dxc4 {[%emt 0:00:47]} 12. Qf3 {[%emt 0:00:36] Against Qe3+} Ng6 {[%emt 0:00:08]} 13. Nxg6 {[%emt 0:00:16]} (13. Nxc4 $2 Bxc4 14. Nxg6 hxg6 $19) 13... hxg6 {[%emt 0:00:00]} 14. O-O-O {[%emt 0:00:02]} (14. Nxc4 $2 Bxc4 15. O-O-O Ba6 $19) 14... Bb4 {[%emt 0:00:34] [#]} (14... cxb3 $14 15. axb3 Rd8) 15. Qg4 {[%emt 0:04:43]} (15. bxc4 $6 Rb8 16. Nb3 Bxc4 $11) (15. Nb1 $1 $16) 15... c3 $2 {[%emt 0:01:06] [#]} (15... Kf7 $11 {and Black has nothing to worry.} 16. Nf3 Bc8) 16. Qxe6+ $2 {[%emt 0:00:04]} (16. Bxc3 $1 $18 Kf7 (16... Bxc3 $2 {is the wrong capture.} 17. Nc4 $18) 17. Bxb4 Qxb4 18. e5) 16... Kf8 $11 {[%emt 0:00:01] The position is equal.} 17. Bxc3 {[%emt 0:00:17]} Bxc3 {[%emt 0:00:00] This pair of bishops is nice.} 18. Qd6+ {[%emt 0:00:52]} Kf7 {[%emt 0:00:17]} (18... Kg8 $5 19. Qe6+ $8 Kf8 20. Qd6+ Ke8 (20... Kf7 21. Qd7+ Kf8 22. Qd6+ $11) 21. Qe6+ Kf8 $11) 19. Qd7+ {[%emt 0:00:01]} Kf8 {[%emt 0:00:00] Threatens to win with ...Qc5.} (19... Kg8 $5 20. Qe6+ $8 Kf8 21. Qd6+ Kg8 (21... Kf7 22. Qd7+ Kf8 23. Qd6+ $11) 22. Qe6+ Kf8 $11) 20. Qd6+ {[%emt 0:00:06]} Kf7 {[%emt 0:00:01]} (20... Kg8 $5 21. Qe6+ $8 Kf8 22. Qd6+ $11) 21. Qd7+ {[%emt 0:00:00]} Kf8 {[%emt 0:00:01] ...Qc5 is the strong threat.} (21... Kg8 $5 22. Qe6+ $8 Kf8 23. Qd6+ $11) 22. Qd6+ {[%emt 0:00:01] Weighted Error Value: White=0.22 (precise) /Black=0.32.  Loses game:     	---       	Black=1      Missed win:     	White=1     	---        Mistake:       	White=1     	Black=1      Inaccurate:     	White=2     	Black=3      OK:         	White=10    	Black=3      Best:        	White=2     	Black=1} 1/2-1/2

[Event "CCT Julius Baer-D3 2024"]
[Site "Online"]
[Date "2024.09.27"]
[Round "1.4"]
[White "Amin, Bassem"]
[Black "Navara, David"]
[Result "0-1"]
[ECO "B51"]
[WhiteElo "2636"]
[BlackElo "2681"]
[Annotator "TA"]
[PlyCount "70"]
[EventDate "2024.09.25"]
[EventType "swiss"]
[EventCountry "NET"]
[SourceTitle "playchess.com"]
[Source "ChessBase"]
[SourceQuality "1"]
[TimeControl "600+2"]

{[%evp 9,70,15,6,0,15,12,18,15,20,22,6,11,11,22,41,41,27,46,29,0,0,-18,-12,-27,-22,-49,-49,-55,-57,-43,-45,-71,-49,-58,-67,-52,-57,-61,-43,-90,-91,-89,-81,-104,-84,-285,-294,-290,-294,-295,-299,-304,-297,-318,-311,-374,-370,-487,-487,-487,-466,-470,-437]} 1. Nf3 {[%emt 0:00:09]} c5 {[%emt 0:00:08]} 2. e4 {[%emt 0:00:27]} d6 {[%emt 0:00:16]} 3. Bb5+ {[%emt 0:00:01]} Nd7 {[%emt 0:00:01]} 4. O-O {[%emt 0:00:03]} a6 {[%emt 0:00:02]} 5. Bd3 {[%emt 0:00:10]} Ngf6 {[%emt 0:00:02]} 6. Re1 {[%emt 0:00:02]} e6 {[%emt 0:00:04]} 7. c3 {[%emt 0:00:01]} Be7 {[%emt 0:00:20]} 8. Bc2 {[%emt 0:00:04] The position is equal.} b5 {[%emt 0:00:01]} 9. d4 {[%emt 0:00:01]} Bb7 {[%emt 0:00:04]} 10. e5 {[%emt 0:00:21]} Nd5 {[%emt 0:00:09]} 11. Nbd2 {[%emt 0:00:17]} cxd4 {[%emt 0:00:10]} 12. exd6 {[%emt 0:00:01]} Bxd6 {[%emt 0:00:01]} 13. Ne4 {[%emt 0:00:02]} Be7 {[%emt 0:00:06]} 14. Qxd4 {[%emt 0:00:19]} O-O {[%emt 0:00:14]} 15. Neg5 {[%emt 0:00:48]} N5f6 {[%emt 0:01:07]} 16. Bf4 {[%emt 0:00:30]} Nc5 {[%emt 0:00:28]} 17. Rad1 {[%emt 0:01:03]} h6 {[%emt 0:00:38]} 18. Nh3 {[%emt 0:00:58]} Qxd4 {[%emt 0:00:34]} 19. Nxd4 {[%emt 0:00:03]} Rfd8 {[%emt 0:01:48]} 20. f3 {[%emt 0:00:06]} Nd5 {[%emt 0:00:40][%cal Bf6d5,Bd5b6,Bb6c4][%mdl 32]} 21. Bg3 {[%emt 0:00:01]} Na4 {[%emt 0:00:10]} 22. Bxa4 {[%emt 0:00:02]} bxa4 {[%emt 0:00:00]} 23. a3 {[%emt 0:00:00]} Rac8 {[%emt 0:00:29]} 24. Nf4 {[%emt 0:00:19]} (24. Nf2 $15 {might be stronger.}) 24... Nb6 $17 {[%emt 0:00:03]} 25. Nd3 {[%emt 0:00:01]} Nc4 {[%emt 0:00:03]} 26. Re2 {[%emt 0:00:04]} Bf6 {[%emt 0:00:30][%cal Oa6a5]} 27. Ne5 $2 {[%emt 0:00:40] [#] White does not recover from this.} (27. Be5 $17) 27... Bxe5 $1 $19 {[%emt 0:00:01]} 28. Bxe5 {[%emt 0:00:02]} f6 {[%emt 0:00:01]} 29. Bxf6 {[%emt 0:00:38]} gxf6 {[%emt 0:00:00]} 30. Rxe6 {[%emt 0:00:01]} Kf7 {[%emt 0:00:26][%cal Od8d4]} ({Not} 30... Nxb2 31. Rb1 Nd3 (31... Rxc3 32. Rxb2 Bc8 33. Rc6 $11) 32. Nf5 (32. Rxb7 $2 Nc5 $19) 32... Rxc3 33. Nxh6+ Kg7 34. Rxb7+ Kxh6 35. h4 $19) 31. Rde1 {[%emt 0:00:05]} Re8 {[%emt 0:00:04] Prevents Re7+.} (31... Nxb2 $2 {loses.} 32. Re7+ Kg8 33. Rxb7 $16) 32. Kf2 {[%emt 0:00:26]} Nxb2 {[%emt 0:01:12] [#] And now ...Nd3+ would win.} 33. Rb1 {[%emt 0:01:24]} Rxe6 {[%emt 0:00:38] Black is clearly winning.} 34. Nxe6 {[%emt 0:00:01]} Kxe6 {[%emt 0:00:12]} 35. Rxb2 {[%emt 0:00:01]} Bd5 {[%emt 0:00:04] Weighted Error Value: White=0.29 (precise) /Black=0.03 (flawless) .  Loses game:     	White=1     	---        Mistake:       	White=1     	---        Inaccurate:     	White=4     	---        OK:         	White=11    	Black=15     Best:        	White=1     	Black=1      Strong:       	---       	Black=1} 0-1

[Event "CCT Julius Baer-D3 2024"]
[Site "Online"]
[Date "2024.09.27"]
[Round "1.4"]
[White "Svane, Rasmus"]
[Black "Bosiocic, Marin"]
[Result "1-0"]
[ECO "A54"]
[WhiteElo "2629"]
[BlackElo "2555"]
[Annotator "TA"]
[PlyCount "57"]
[EventDate "2024.09.25"]
[EventType "swiss"]
[EventCountry "NET"]
[SourceTitle "playchess.com"]
[Source "ChessBase"]
[SourceQuality "1"]
[TimeControl "600+2"]

{[%evp 14,57,17,26,66,69,67,75,131,119,136,147,242,252,266,263,331,337,335,281,255,236,220,235,230,232,215,220,232,228,225,202,214,223,214,212,818,763,798,796,763,758,950,914,944,930]} 1. Nf3 {[%emt 0:00:07]} d6 {[%emt 0:00:07]} 2. d4 {[%emt 0:00:02]} Nf6 {[%emt 0:00:02]} 3. g3 {[%emt 0:00:12]} Nbd7 {[%emt 0:00:02]} 4. Bg2 {[%emt 0:00:02]} e5 {[%emt 0:00:01]} 5. c4 {[%emt 0:00:03]} c6 {[%emt 0:00:01]} 6. Nc3 {[%emt 0:00:02]} e4 {[%emt 0:00:02]} 7. Nd2 {[%emt 0:00:03]} d5 {[%emt 0:00:00]} 8. O-O {[%emt 0:00:02]} Bb4 {[%emt 0:00:05]} 9. Qb3 {[%emt 0:00:06]} Bxc3 {[%emt 0:00:01]} 10. bxc3 {[%emt 0:00:05]} Nb6 {[%emt 0:00:12] [#]} ({Black should try} 10... O-O) 11. cxd5 $1 $16 {[%emt 0:00:15]} cxd5 {[%emt 0:00:05]} 12. a4 {[%emt 0:00:37] White is more active.} a5 {[%emt 0:00:47]} (12... O-O $16 {was necessary.}) 13. Ba3 $18 {[%emt 0:00:48]} Be6 {[%emt 0:00:07]} 14. Rab1 {[%emt 0:00:30]} Ra6 {[%emt 0:00:05] [#]} 15. c4 $1 {[%emt 0:00:58][%mdl 512]} Qd7 {[%emt 0:00:40]} 16. c5 {[%emt 0:00:42]} Nxa4 {[%emt 0:01:28] [#]} 17. c6 $1 {[%emt 0:00:36][%mdl 512]} Qxc6 {[%emt 0:00:01]} 18. Rfc1 {[%emt 0:00:01] Wards off Nc3} ({Don't play} 18. Qxb7 $6 Qxb7 19. Rxb7 Rc6 $16) 18... Qd7 {[%emt 0:00:01]} 19. Qxb7 $40 {[%emt 0:00:08][%mdl 128] White is out for blood.} Qxb7 {[%emt 0:00:02]} 20. Rxb7 {[%emt 0:00:00]} Ra8 {[%emt 0:00:01] Wards off Rb8+} 21. e3 {[%emt 0:00:33][%mdl 1024] And now Bf1 would win. White has strong compensation.} Nd7 {[%emt 0:01:09]} 22. Bf1 {[%emt 0:00:11] Threatens to win with Bb5.} Nab6 {[%emt 0:00:18] Black is weak on the dark squares} 23. Bb5 {[%emt 0:00:07]} Kd8 {[%emt 0:00:02]} 24. Rc6 {[%emt 0:00:42][%cal Od2b3] aiming for Nb3!} Rc8 $2 {[%emt 0:01:02]} (24... h5 25. Rcxb6 (25. Rbxb6 Nxb6 26. Rxb6 h4 $18) 25... Nxb6) 25. Rd6 {[%emt 0:00:37] White is clearly winning.} Rc3 {[%emt 0:00:21]} 26. Bc5 {[%emt 0:00:35]} Kc8 {[%emt 0:00:36]} 27. Ba6 {[%emt 0:00:11] A strong pair of Bishops.} Kd8 {[%emt 0:00:40]} 28. Bxb6+ {[%emt 0:00:15]} Ke7 {[%emt 0:00:01]} 29. Bc5 {[%emt 0:00:05] Black did not feel at home in the position after the opening.   Weighted Error Value: White=0.08 (flawless) /Black=0.26 (precise) .  Mistake:       	---       	Black=3      OK:         	White=10    	Black=8      Best:        	---       	Black=1} 1-0

[Event "CCT Julius Baer-D3 2024"]
[Site "Online"]
[Date "2024.09.27"]
[Round "1.4"]
[White "Yoo, Christopher Woojin"]
[Black "Deac, Bogdan-Daniel"]
[Result "1/2-1/2"]
[ECO "C43"]
[WhiteElo "2603"]
[BlackElo "2680"]
[Annotator "TA"]
[PlyCount "140"]
[EventDate "2024.09.25"]
[EventType "swiss"]
[EventCountry "NET"]
[SourceTitle "playchess.com"]
[Source "ChessBase"]
[SourceQuality "1"]
[TimeControl "600+2"]

{[%evp 69,140,0,0,0,0,0,0,0,556,554,1528,1185,1291,1442,1119,0,0,0,0,0,0,0,0,0,0,-438,66,60,83,89,89,89,90,90,90,92,342,0,0,0,0,0,0,0,0,-8,-8,-8,0,-8,0,0,0,0,0,-8,-8,-8,-8,-8,-8,-8,-8,-8,-8,-8,-8,-8,-8,-8,-8,-8,-8]} 1. e4 {[%emt 0:00:09]} e5 {[%emt 0:00:04]} 2. Nf3 {[%emt 0:00:03]} Nf6 {[%emt 0:00:00]} 3. d4 {[%emt 0:00:42]} Nxe4 {[%emt 0:00:03]} 4. Bd3 {[%emt 0:00:01]} d5 {[%emt 0:00:01]} 5. Nxe5 {[%emt 0:00:02]} Nd7 {[%emt 0:00:01]} 6. Nc3 {[%emt 0:00:35]} Nxc3 {[%emt 0:00:05] C43: Petroff Defence: 3 d4.} 7. bxc3 {[%emt 0:00:02]} Bd6 {[%emt 0:00:01] now supersedes 7...Nxe5.} 8. Qh5 {[%emt 0:02:05]} g6 {[%emt 0:00:26]} 9. Nxg6 {[%emt 0:00:05]} fxg6 $146 {[%emt 0:00:58]} ({Predecessor:} 9... Nf6 10. Qe2+ Be6 11. Nxh8 Kd7 12. Rb1 Qxh8 13. Rxb7 Qg7 14. O-O Rg8 15. g3 h5 {1-0 Tomczak,J (2603)-Kashlinskaya,A (2484) PRO League Stage rapid 2020 (7)}) 10. Bxg6+ {[%emt 0:00:04]} Ke7 {[%emt 0:00:02]} 11. Bg5+ {[%emt 0:01:23]} Nf6 {[%emt 0:00:11]} 12. Qf3 {[%emt 0:00:15]} Qf8 {[%emt 0:00:36]} 13. Bd3 {[%emt 0:00:04]} Qg7 {[%emt 0:01:13]} 14. Bh4 {[%emt 0:00:03]} Qh6 {[%emt 0:01:48]} 15. Qe3+ {[%emt 0:00:16]} Qxe3+ {[%emt 0:02:09]} 16. fxe3 {[%emt 0:00:00]} Ke6 {[%emt 0:00:34]} 17. O-O {[%emt 0:00:02]} Be7 {[%emt 0:00:08]} 18. c4 {[%emt 0:00:05]} Rf8 {[%emt 0:01:25]} 19. Rf3 {[%emt 0:00:24]} Kf7 {[%emt 0:00:38]} 20. cxd5 {[%emt 0:01:23]} Kg7 {[%emt 0:00:03]} 21. Raf1 {[%emt 0:00:02]} Bd7 {[%emt 0:00:10]} 22. c4 {[%emt 0:01:20]} Nxd5 {[%emt 0:00:04]} 23. Bg3 {[%emt 0:00:01]} Rxf3 {[%emt 0:00:03]} 24. Rxf3 {[%emt 0:00:00]} Nf6 {[%emt 0:00:01]} 25. Bxc7 {[%emt 0:00:01]} Rf8 {[%emt 0:00:05]} 26. Be5 {[%emt 0:00:04]} b6 {[%emt 0:00:01]} 27. g4 {[%emt 0:00:28]} h6 {[%emt 0:00:02]} 28. h3 {[%emt 0:00:18]} Kg8 {[%emt 0:00:01]} 29. e4 {[%emt 0:00:26]} Ne8 {[%emt 0:00:02]} 30. Rxf8+ {[%emt 0:00:02]} Kxf8 {[%emt 0:00:00]} 31. Bf4 {[%emt 0:00:02]} Bg5 {[%emt 0:00:02]} 32. Bxg5 {[%emt 0:00:04]} hxg5 {[%emt 0:00:00]} 33. e5 {[%emt 0:00:01]} Nc7 {[%emt 0:00:03]} 34. d5 {[%emt 0:00:03]} Na6 {[%emt 0:00:02]} 35. Kf2 {[%emt 0:00:01]} Nc5 {[%emt 0:00:01]} 36. Bc2 {[%emt 0:00:02]} Ke7 {[%emt 0:00:03]} 37. Ke3 {[%emt 0:00:01]} Be8 {[%emt 0:00:05]} 38. Bf5 {[%emt 0:00:05]} Bd7 $2 {[%emt 0:00:04][%mdl 8192] [#]} (38... Kf7 $11) 39. Kd4 $1 $18 {[%emt 0:00:03]} Be8 {[%emt 0:00:02]} 40. d6+ {[%emt 0:00:10]} Kf7 {[%emt 0:00:01]} 41. Kd5 {[%emt 0:00:01]} Ba4 {[%emt 0:00:01]} 42. e6+ $2 {[%emt 0:00:03]} (42. h4 $18 gxh4 43. g5) 42... Kf6 $11 {[%emt 0:00:00]} 43. e7 {[%emt 0:00:02]} Kf7 {[%emt 0:00:01]} 44. Bb1 {[%emt 0:00:22]} Kf6 {[%emt 0:00:02]} 45. Bf5 {[%emt 0:00:04]} Be8 {[%emt 0:00:01]} 46. Kd4 {[%emt 0:00:01]} Ne6+ {[%emt 0:00:03]} (46... Bc6 $5 47. Bc8 $8 Ne6+ 48. Kd3 Be8 $11) 47. Ke3 $2 {[%emt 0:00:03][%mdl 8192]} (47. Kd5 $1 $11 {and White stays safe.} Nf4+ 48. Kd4) 47... Ke5 $2 {[%emt 0:00:03]} ({Black should try} 47... Bc6 $19 {Strongly threatening ...Ke5.} 48. Kf2 Ke5) 48. Bg6 $1 $14 {[%emt 0:00:01]} Bc6 {[%emt 0:00:04]} (48... Bxg6 $2 {is the wrong capture.} 49. d7 Ng7 50. d8=Q $18 (50. d8=R Bf7 $18)) 49. e8=Q {[%emt 0:00:03]} Bxe8 {[%emt 0:00:01]} 50. Bxe8 {[%emt 0:00:00]} Kxd6 {[%emt 0:00:00]} 51. Ke4 {[%emt 0:00:01]} Ke7 {[%emt 0:00:02]} 52. Bb5 {[%emt 0:00:05]} a6 $2 {[%emt 0:00:02]} (52... Kf6 $16 {is a better defense.}) 53. Bxa6 $2 {[%emt 0:00:01]} ({White has to play} 53. Bc6 $18) 53... Nc5+ $11 {[%emt 0:00:02]} 54. Kf5 {[%emt 0:00:00]} Nxa6 {[%emt 0:00:00]} 55. Kxg5 {[%emt 0:00:00]} Kf7 {[%emt 0:00:03]} 56. h4 {[%emt 0:00:03]} Nb4 {[%emt 0:00:01]} 57. a4 {[%emt 0:00:05]} Nd3 {[%emt 0:00:01]} 58. Kf5 {[%emt 0:00:02]} Nb2 {[%emt 0:00:01]} 59. g5 {[%emt 0:00:01]} Nxc4 {[%emt 0:00:02]} 60. h5 {[%emt 0:00:02]} Nd6+ {[%emt 0:00:02]} 61. Ke5 {[%emt 0:00:01]} Nc4+ {[%emt 0:00:01]} 62. Kd5 {[%emt 0:00:02]} Nb2 {[%emt 0:00:01]} 63. h6 {[%emt 0:00:05]} Nxa4 {[%emt 0:00:02]} 64. Kc6 {[%emt 0:00:02]} Nc5 {[%emt 0:00:01]} 65. Kxb6 {[%emt 0:00:02]} (65. h7 $5 Kg7 $8 66. Kxb6 $11) 65... Ne6 {[%emt 0:00:00]} 66. h7 {[%emt 0:00:00]} Kg7 $1 {[%emt 0:00:01]} 67. h8=Q+ {[%emt 0:00:01]} Kxh8 {[%emt 0:00:01]} 68. g6 {[%emt 0:00:00]} Kg7 {[%emt 0:00:00]} 69. Kc6 {[%emt 0:00:00]} Nf8 {[%emt 0:00:01]} 70. Kd5 {[%emt 0:00:00]} Nxg6 {[%emt 0:00:00]} 1/2-1/2

[Event "CCT Julius Baer-D3 2024"]
[Site "Online"]
[Date "2024.09.27"]
[Round "1.4"]
[White "Yilmaz, Mustafa"]
[Black "Makarian, Rudik"]
[Result "1/2-1/2"]
[ECO "D38"]
[WhiteElo "2587"]
[BlackElo "2550"]
[Annotator "RC"]
[PlyCount "164"]
[EventDate "2024.09.25"]
[EventType "swiss"]
[EventCountry "NET"]
[SourceTitle "playchess.com"]
[Source "ChessBase"]
[SourceQuality "1"]
[TimeControl "600+2"]

1. d4 {[%emt 0:00:03]} Nf6 {[%emt 0:00:05]} 2. c4 {[%emt 0:00:01]} e6 {[%emt 0:00:01]} 3. Nf3 {[%emt 0:00:01]} d5 {[%emt 0:00:00]} 4. Nc3 {[%emt 0:00:00]} Bb4 {[%emt 0:00:10]} 5. Qa4+ {[%emt 0:00:08]} Nc6 {[%emt 0:00:01]} 6. e3 {[%emt 0:00:00]} O-O {[%emt 0:00:02]} 7. Qc2 {[%emt 0:00:02]} Re8 {[%emt 0:00:15]} 8. Bd2 {[%emt 0:00:03]} Bd6 {[%emt 0:00:03]} 9. c5 {[%emt 0:01:30]} Bf8 {[%emt 0:00:03]} 10. Bb5 {[%emt 0:00:27]} Bd7 {[%emt 0:00:05]} 11. O-O {[%emt 0:01:39]} Ne7 {[%emt 0:01:23]} 12. Bd3 {[%emt 0:00:07]} Nc6 {[%emt 0:00:09]} 13. Bb5 {[%emt 0:01:50]} Ne7 {[%emt 0:00:02]} 14. Be2 {[%emt 0:00:52]} Nc6 {[%emt 0:02:11]} 15. Ne5 {[%emt 0:00:06]} Nxe5 {[%emt 0:00:39]} 16. dxe5 {[%emt 0:00:01]} Ne4 {[%emt 0:00:01]} 17. Nxe4 {[%emt 0:00:02]} dxe4 {[%emt 0:00:00]} 18. Qxe4 {[%emt 0:01:27]} Bc6 {[%emt 0:00:04]} 19. Qc2 {[%emt 0:00:01]} Qg5 {[%emt 0:01:46]} 20. f3 {[%emt 0:00:03]} a5 {[%emt 0:00:01]} 21. Qc3 {[%emt 0:00:32]} Red8 {[%emt 0:00:01]} 22. Rad1 {[%emt 0:00:04]} Qe7 {[%emt 0:00:11]} 23. e4 {[%emt 0:00:31]} Qxc5+ {[%emt 0:00:04]} 24. Be3 {[%emt 0:00:00]} Qxc3 {[%emt 0:00:10]} 25. bxc3 {[%emt 0:00:01]} b6 {[%emt 0:00:31]} 26. Kf2 {[%emt 0:00:02]} Be7 {[%emt 0:00:15]} 27. g3 {[%emt 0:00:08]} h6 {[%emt 0:00:25]} 28. h4 {[%emt 0:00:03]} a4 {[%emt 0:00:15]} 29. h5 {[%emt 0:00:34]} Rxd1 {[%emt 0:00:16]} 30. Rxd1 {[%emt 0:00:02]} Kf8 {[%emt 0:00:25]} 31. Rb1 {[%emt 0:00:03]} Ra5 {[%emt 0:00:12]} 32. Bd4 {[%emt 0:00:07]} Ke8 {[%emt 0:00:18]} 33. Bd3 {[%emt 0:00:17]} Bd7 {[%emt 0:00:18]} 34. Ke2 {[%emt 0:00:03]} c5 {[%emt 0:00:07]} 35. Be3 {[%emt 0:00:01]} b5 {[%emt 0:00:01]} 36. Bd2 {[%emt 0:00:02]} Kd8 {[%emt 0:00:25]} 37. f4 {[%emt 0:00:07]} Kc7 {[%emt 0:00:05]} 38. g4 {[%emt 0:00:01]} a3 {[%emt 0:00:05]} 39. g5 {[%emt 0:00:02]} Bf8 {[%emt 0:00:06]} 40. g6 {[%emt 0:00:12]} c4 {[%emt 0:00:02]} 41. Bc2 {[%emt 0:00:01]} Be8 {[%emt 0:00:00]} 42. f5 {[%emt 0:00:01]} Ra8 {[%emt 0:00:06]} 43. Be3 {[%emt 0:00:01]} Kc6 {[%emt 0:00:02]} 44. Bd4 {[%emt 0:00:02]} Rd8 {[%emt 0:00:02]} 45. Ke3 {[%emt 0:00:01]} Kc7 {[%emt 0:00:03]} 46. Rg1 {[%emt 0:00:02]} Kc6 {[%emt 0:00:02]} 47. f6 {[%emt 0:00:00]} fxg6 {[%emt 0:00:02]} 48. hxg6 {[%emt 0:00:02]} Kc7 {[%emt 0:00:02]} 49. f7 {[%emt 0:00:07]} Bc6 {[%emt 0:00:01]} 50. Rb1 {[%emt 0:00:02]} Kb7 {[%emt 0:00:02]} 51. Bd1 {[%emt 0:00:00]} Ka6 {[%emt 0:00:01]} 52. Bg4 {[%emt 0:00:01]} Bd7 {[%emt 0:00:01]} 53. Kf3 {[%emt 0:00:03]} Bc8 {[%emt 0:00:02]} 54. Ke2 {[%emt 0:00:03]} Ka5 {[%emt 0:00:01]} 55. Ke3 {[%emt 0:00:02]} Ka6 {[%emt 0:00:02]} 56. Be2 {[%emt 0:00:01]} Bd7 {[%emt 0:00:07]} 57. Bf1 {[%emt 0:00:01]} Bc8 {[%emt 0:00:01]} 58. Bh3 {[%emt 0:00:01]} Ka5 {[%emt 0:00:01]} 59. Rd1 {[%emt 0:00:02]} Ka6 {[%emt 0:00:02]} 60. Rc1 {[%emt 0:00:08]} Bd7 {[%emt 0:00:02]} 61. Ke2 {[%emt 0:00:01]} Bc8 {[%emt 0:00:02]} 62. Bg4 {[%emt 0:00:01]} Be7 {[%emt 0:00:02]} 63. Rf1 {[%emt 0:00:02]} Bf8 {[%emt 0:00:00]} 64. Ke3 {[%emt 0:00:03]} Bd7 {[%emt 0:00:02]} 65. Rb1 {[%emt 0:00:02]} Bc8 {[%emt 0:00:02]} 66. Be2 {[%emt 0:00:01]} Bd7 {[%emt 0:00:02]} 67. Kf3 {[%emt 0:00:05]} Bc8 {[%emt 0:00:01]} 68. Be3 {[%emt 0:00:00]} Rd7 {[%emt 0:00:06]} 69. Kf2 {[%emt 0:00:02]} Rd8 {[%emt 0:00:00]} 70. Bg4 {[%emt 0:00:01]} Ka5 {[%emt 0:00:02]} 71. Bd4 {[%emt 0:00:03]} Ka6 {[%emt 0:00:02]} 72. Ke3 {[%emt 0:00:05]} Ka5 {[%emt 0:00:01]} 73. Be2 {[%emt 0:00:01]} Ka6 {[%emt 0:00:00]} 74. Kf2 {[%emt 0:00:02]} Rd7 {[%emt 0:00:03]} 75. Bf1 {[%emt 0:00:02]} Rd8 {[%emt 0:00:01]} 76. Ke3 {[%emt 0:00:03]} Bd7 {[%emt 0:00:03]} 77. Rd1 {[%emt 0:00:02]} Bc8 {[%emt 0:00:01]} 78. Rd2 {[%emt 0:00:02]} Rd7 {[%emt 0:00:02]} 79. Rd1 {[%emt 0:00:04]} Rd8 {[%emt 0:00:01]} 80. Rb1 {[%emt 0:00:00]} Bd7 {[%emt 0:00:02]} 81. Ke2 {[%emt 0:00:02]} Bc6 {[%emt 0:00:04]} 82. Ke3 {[%emt 0:00:01]} Bd7 {[%emt 0:00:00]} 1/2-1/2